bitfinex/quotes_ETHUSD_20260219
["timestamp","ask_amount","ask_price","bid_price","bid_amount"]
[1771476519706,1.7357821,1972.8,1972.2,1.72189022]
[1771476520691,1.26723438,1972.8,1972.3,0.45427537]
[1771476520893,1.26723438,1972.8,1972.4,0.45427537]
[1771476522605,5.54830518,1972.7,1972.0,6.56901214]
[1771476522922,5.54830518,1972.7,1972.0,1.044]
[1771476522923,0.46854772,1972.6,1972.0,1.044]
[1771476523128,6.0168529,1972.5,1972.0,1.044]
[1771476523309,0.46854772,1972.4,1972.0,1.044]
[1771476524017,0.46854772,1972.4,1972.1,0.001]
[1771476524216,0.46854772,1972.6,1972.1,0.001]
[1771476524602,1.26742712,1972.5,1972.1,0.001]
[1771476525894,1.73597484,1972.5,1972.1,0.001]
[1771476528024,1.26742712,1972.5,1972.1,0.001]
[1771476528823,1.73597484,1972.5,1972.1,0.001]
[1771476529425,0.46854772,1972.4,1972.1,0.001]
[1771476530705,1.73597484,1972.5,1972.1,0.001]
[1771476533228,11.62186344,1972.6,1972.1,0.001]
[1771476533229,10.63186344,1972.6,1972.1,0.001]
[1771476533728,11.10041116,1972.6,1972.1,0.001]
[1771476534441,0.46854772,1972.5,1972.1,0.001]
[1771476536036,1.7360391,1972.4,1972.1,0.001]
[1771476536339,7.29841527,1972.4,1972.1,0.001]
[1771476536637,0.46854772,1972.3,1971.6,2.30895407]
[1771476536837,6.82986755,1972.4,1971.6,1.041]
[1771476536838,6.03092389,1972.2,1971.6,1.041]
[1771476537022,0.46854772,1972.1,1971.6,1.041]
[1771476537823,5.56237617,1972.0,1971.6,1.041]
[1771476538338,0.994,1972.3,1971.5,0.45427537]
[1771476538545,1.46254772,1972.3,1971.5,0.45427537]
[1771476538745,0.46854772,1972.3,1971.5,0.45427537]
[1771476539144,0.46854772,1972.3,1971.7,0.001]
[1771476539321,0.46854772,1972.3,1971.7,0.49680328]
[1771476540442,5.86148275,1972.5,1971.8,0.46780795]
[1771476540745,0.4929166,1972.6,1971.8,0.46780795]
[1771476540928,0.0011,1972.6,1971.8,0.46780795]
[1771476541130,6.8308406,1972.6,1971.8,0.46780795]
[1771476541338,7.3226572,1972.6,1971.8,0.46780795]
[1771476541547,0.4918166,1972.5,1971.8,0.46780795]
[1771476541922,6.8308406,1972.6,1971.8,0.46780795]
[1771476542125,0.0011,1972.6,1972.0,0.46780795]
[1771476542431,0.0011,1972.6,1972.1,1.73549214]
[1771476545089,0.0011,1973.0,1972.5,0.46780795]
[1771476545861,5.56347617,1973.0,1972.5,0.46780795]
[1771476546224,5.56347617,1973.0,1972.3,0.46780795]
[1771476546225,0.0011,1973.0,1972.3,0.46780795]
[1771476546434,0.0011,1973.0,1972.4,0.46780795]
[1771476546628,0.0011,1973.0,1972.5,1.26742712]
[1771476546950,0.0011,1973.0,1972.5,1.73523507]
[1771476549424,0.0011,1973.0,1972.6,0.46780795]
[1771476550465,7.32077289,1973.9,1972.9,0.46780795]
[1771476550757,0.4918166,1973.8,1972.9,0.46780795]
[1771476550940,6.05419277,1973.9,1973.2,0.46780795]
[1771476551127,5.56237617,1973.7,1973.0,0.917]
[1771476551448,6.05419277,1973.7,1973.0,0.917]
[1771476551650,6.05419277,1973.5,1973.0,0.917]
[1771476551948,5.56237617,1973.3,1972.8,1.26723438]
[1771476552127,5.56237617,1973.3,1972.7,1.89227311]
[1771476552327,6.05419277,1973.3,1972.7,1.89227311]
[1771476553750,0.0011,1972.9,1972.7,1.89227311]
[1771476554160,0.0011,1972.9,1972.7,2.36008106]
[1771476555926,0.0011,1972.9,1972.8,0.46780795]
[1771476556750,0.0011,1973.0,1972.8,0.46780795]
[1771476557131,0.0011,1973.0,1972.8,0.51849732]
[1771476558562,0.0011,1973.0,1972.9,1.7349781]
[1771476561673,0.4918166,1973.6,1972.9,1.7349781]
[1771476561674,1.26663606,1973.8,1972.9,1.26717015]
[1771476561960,0.4918166,1973.7,1973.0,0.46780795]
[1771476562329,0.4918166,1973.7,1973.1,1.048]
[1771476562737,0.4918166,1973.6,1973.2,1.26697749]
[1771476564858,0.4918166,1973.8,1973.2,1.26697749]
[1771476566166,3.6,1973.9,1973.3,0.46780795]
[1771476566348,0.4929166,1974.0,1973.3,0.46780795]
[1771476566938,0.4929166,1974.0,1973.4,1.73465704]
[1771476567154,0.0011,1974.0,1973.5,0.991]
[1771476567770,0.0011,1973.6,1973.5,0.991]
[1771476568341,0.0011,1973.6,1973.2,0.913]
[1771476568342,0.0011,1973.6,1973.3,1.26689901]
[1771476569452,0.4929166,1973.6,1973.1,1.047]
[1771476570640,0.0011,1973.8,1973.2,0.48150811]
[1771476571051,0.0011,1973.8,1973.4,0.48150811]
[1771476571346,0.0011,1973.8,1973.5,1.52850811]
[1771476574066,0.0011,1973.8,1973.6,1.30701391]
[1771476575248,0.0011,1974.0,1973.6,1.78852202]
[1771476575450,0.0011,1974.0,1973.7,0.48150811]
[1771476575650,0.0011,1974.0,1973.8,0.48150811]
[1771476575849,0.0011,1974.1,1973.9,1.048]
[1771476576169,0.0011,1974.6,1974.1,0.48150811]
[1771476578782,0.0011,1974.6,1974.2,1.74784384]
[1771476578965,0.0011,1974.6,1974.3,1.049]
[1771476579276,0.0011,1974.6,1974.4,0.48150811]
[1771476579476,0.0011,1974.7,1974.4,0.48150811]
[1771476580183,0.0011,1974.5,1974.4,0.48150811]
[1771476580659,0.0011,1974.5,1974.4,1.74771556]
[1771476581056,0.0011,1974.6,1974.4,1.74771556]
[1771476582379,0.0011,1974.6,1974.3,2.31521887]
[1771476582749,0.46345601,1974.6,1974.2,1.26630564]
[1771476582967,0.46345601,1974.6,1974.2,1.05]
[1771476583791,0.46345601,1974.6,1973.9,1.05]
[1771476584857,1.72849933,1974.5,1973.9,2.31651065]
[1771476585057,0.46235601,1974.4,1973.9,2.31651065]
[1771476588360,0.46235601,1974.4,1973.9,2.31651945]
[1771476592805,0.0011,1974.3,1973.9,2.31651945]
[1771476595697,3.6011,1974.6,1974.0,0.53201443]
[1771476596468,0.0011,1974.6,1974.0,0.53201443]
[1771476597083,0.0011,1974.7,1974.1,0.48150811]
[1771476597284,0.0011,1974.7,1974.3,0.48150811]
[1771476597484,0.0011,1974.7,1974.4,2.31820745]
[1771476601631,0.0011,1974.7,1974.5,0.47565509]
[1771476602207,0.0011,1974.7,1974.6,1.2660792]
[1771476603715,0.48616647,1974.7,1973.9,0.47565509]
[1771476603893,0.48616647,1974.7,1974.0,1.055]
[1771476604287,0.48506647,1974.5,1974.0,2.32141351]
[1771476605015,0.48506647,1974.5,1974.0,1.055]
[1771476605230,0.48506647,1974.5,1974.0,2.32145842]
[1771476606139,0.48506647,1974.5,1974.0,2.32245842]
[1771476606645,0.48616647,1974.4,1974.0,2.32245842]
[1771476610219,0.48506647,1974.3,1974.0,1.056]
[1771476613131,1.75135004,1974.3,1974.0,1.056]
[1771476613339,1.75135004,1974.3,1974.0,0.001]
[1771476613537,0.48506647,1974.2,1974.0,0.001]
[1771476614538,0.0011,1974.4,1974.0,1.26746262]
[1771476614708,0.0011,1974.4,1974.0,1.74311771]
[1771476615334,0.0011,1974.4,1974.0,1.26746262]
[1771476619347,0.0011,1974.4,1974.1,0.001]
[1771476632962,0.0011,1974.4,1974.2,0.001]
[1771476633472,0.4819883,1974.4,1974.2,0.001]
[1771476634034,0.0011,1974.4,1974.2,0.001]
[1771476635038,0.4819883,1974.4,1974.2,0.001]
[1771476636575,0.0011,1974.4,1974.2,0.001]
[1771476639388,0.4819883,1974.4,1974.1,0.001]
[1771476639555,0.4819883,1974.4,1973.9,0.001]
[1771476639947,0.4808883,1974.3,1973.9,0.001]
[1771476640347,0.0011,1974.4,1973.9,0.49181338]
[1771476641279,0.0011,1974.4,1974.0,1.26646403]
[1771476642676,0.4819883,1974.4,1973.9,1.26748078]
[1771476643582,1.7481995,1974.4,1973.9,1.26748078]
[1771476644289,1.7481995,1974.4,1973.9,0.001]
[1771476644290,0.4808883,1974.3,1973.9,0.001]
[1771476644978,0.4808883,1974.3,1974.0,0.001]
[1771476645681,0.4808883,1974.1,1974.0,0.001]
[1771476645879,0.4808883,1974.1,1973.8,0.001]
[1771476646077,0.4808883,1973.9,1973.5,0.001]
[1771476647367,0.968,1974.1,1973.5,0.001]
[1771476647691,1.74735233,1974.0,1973.5,0.001]
[1771476647891,0.4808883,1973.9,1973.5,0.001]
[1771476650082,1.74744641,1973.9,1973.5,0.001]
[1771476651886,0.4808883,1973.8,1973.5,0.001]
[1771476652882,4.86655665,1973.9,1973.5,0.001]
[1771476653277,0.4808883,1973.8,1973.5,0.001]
[1771476654882,4.86655665,1973.9,1973.5,0.001]
[1771476655089,5.34744495,1973.9,1973.5,0.001]
[1771476656655,5.34744495,1973.9,1973.6,0.001]
[1771476656889,0.0011,1973.8,1973.6,0.001]
[1771476657086,0.4819883,1973.8,1973.6,0.001]
[1771476659291,0.0011,1973.8,1973.6,0.001]
[1771476659466,1.26769573,1973.8,1973.6,0.001]
[1771476660291,0.0011,1973.8,1973.6,0.001]
[1771476660471,1.26769734,1973.8,1973.6,0.001]
[1771476660791,0.0011,1973.8,1973.6,0.001]
[1771476662380,0.0011,1973.8,1973.4,0.001]
[1771476662381,0.47487756,1973.7,1973.4,0.001]
[1771476662583,0.47487756,1973.7,1973.0,1.054]
[1771476662768,0.47487756,1973.7,1973.0,2.32110115]
[1771476663289,1.74159827,1973.6,1973.0,2.32110115]
[1771476663990,0.47487756,1973.5,1973.0,2.32110115]
[1771476665303,1.74170312,1973.5,1973.0,2.32110115]
[1771476665712,0.47487756,1973.4,1973.0,1.054]
[1771476667308,1.26691329,1973.3,1973.0,1.054]
[1771476667816,1.74177895,1973.4,1973.0,0.001]
[1771476669814,1.74177895,1973.4,1973.1,0.001]
[1771476669987,1.26690139,1973.4,1973.1,0.001]
[1771476674231,1.74177895,1973.4,1973.1,0.001]
[1771476675809,1.26690139,1973.4,1973.1,0.001]
[1771476676019,0.47487756,1973.3,1973.1,0.001]
[1771476676538,1.74181142,1973.3,1973.1,0.001]
[1771476677919,6.02820831,1973.2,1972.8,0.001]
[1771476678115,5.55333075,1973.2,1972.8,0.001]
[1771476678310,0.47487756,1973.1,1972.8,0.001]
[1771476678493,1.26710593,1973.0,1972.8,0.001]
[1771476678687,1.74198349,1973.0,1972.5,1.044]
[1771476678988,0.47487756,1972.7,1972.3,0.913]
[1771476679192,2.25410593,1973.0,1972.1,1.044]
[1771476679193,6.02820831,1972.6,1972.1,1.044]
[1771476679490,6.02820831,1972.6,1971.9,1.26777165]
[1771476679491,0.47487756,1972.5,1971.8,1.72052926]
[1771476679691,7.01620831,1972.6,1971.9,0.45266718]
[1771476680730,1.26742712,1972.5,1971.9,1.72044574]
[1771476681414,12.08575574,1972.6,1971.9,1.72044574]
[1771476681604,2.25527843,1972.8,1972.0,0.45266718]
[1771476681804,2.25527843,1972.8,1972.0,0.45366718]
[1771476682713,2.25527843,1972.8,1972.1,1.72035137]
[1771476683511,2.25527843,1972.8,1972.2,0.45266718]
[1771476684530,4.86715552,1973.0,1972.2,0.45266718]
[1771476684716,5.85515552,1973.0,1972.4,0.45266718]
[1771476685028,6.33003308,1973.0,1972.4,0.45266718]
[1771476685424,5.06287756,1973.0,1972.4,0.45266718]
[1771476685725,6.32998719,1973.0,1972.4,0.45266718]
[1771476687028,6.32998719,1973.0,1972.5,1.26742712]
[1771476687441,0.47487756,1972.9,1972.3,1.72021324]
[1771476688412,0.47487756,1972.9,1972.3,0.45266718]
[1771476690113,1.74206853,1972.9,1972.4,1.26749138]
[1771476691568,0.47526704,1972.8,1972.1,5.56721651]
[1771476691732,6.02859779,1972.8,1972.1,1.76427543]
[1771476692333,1.74248172,1972.9,1972.2,0.49659124]
[1771476694735,0.47526704,1972.8,1972.3,1.26755564]
[1771476696023,0.47636704,1972.7,1972.3,1.26755564]
[1771476696249,0.47636704,1972.7,1972.1,5.07064275]
[1771476696750,0.47636704,1972.7,1972.1,5.56723399]
[1771476696955,1.74366903,1972.7,1972.1,5.56723399]
[1771476697118,0.47636704,1972.7,1972.1,5.56723399]
[1771476698030,1.74367002,1972.7,1972.1,5.56723399]
[1771476698952,1.74367002,1972.7,1972.1,1.76427543]
[1771476699257,1.74367002,1972.7,1972.1,0.49659124]
[1771476700055,0.47526704,1972.6,1972.0,2.31174789]
[1771476700433,6.02859779,1972.4,1972.0,1.044]
[1771476701748,0.992,1972.6,1972.0,2.80833754]
[1771476701749,7.29599141,1972.6,1972.0,2.80833754]
[1771476701952,2.26044496,1972.7,1972.1,0.49659124]
[1771476702127,2.735712,1972.7,1972.1,0.49659124]
[1771476704152,0.47526704,1972.6,1972.0,2.3117463]
[1771476704334,6.02859779,1972.6,1972.0,2.3117463]
[1771476705948,6.02859779,1972.4,1972.0,1.044]
[1771476706152,1.26755564,1972.3,1972.0,1.044]
[1771476706656,1.74282268,1972.3,1972.0,0.001]
[1771476707057,1.26755564,1972.3,1972.0,0.001]
[1771476707764,6.02859779,1972.2,1971.8,0.913]
[1771476708061,6.04041361,1972.1,1971.8,0.913]
[1771476708261,1.26774847,1972.0,1971.8,0.913]
[1771476708431,1.26774847,1972.0,1971.6,1.041]
[1771476708631,0.47526704,1971.9,1971.2,1.26826298]
[1771476708866,6.04041361,1971.9,1971.2,2.80485422]
[1771476709159,0.47526704,1971.9,1971.2,2.80485422]
[1771476709328,0.47526704,1971.9,1971.2,2.30826298]
[1771476709932,0.47526704,1971.9,1971.8,0.001]
[1771476710129,0.47526704,1971.9,1971.2,2.30826298]
[1771476710445,1.7431213,1971.9,1971.2,2.30826298]
[1771476710760,6.04041361,1972.1,1971.3,0.49659124]
[1771476710962,7.30815009,1972.1,1971.3,0.49659124]
[1771476711346,1.74300352,1972.1,1971.3,0.49659124]
[1771476712662,1.74300352,1972.1,1971.4,1.76472556]
[1771476713335,1.74270584,1972.5,1971.6,0.49659124]
[1771476713536,0.47526704,1972.4,1971.6,0.49659124]
[1771476714563,0.47526704,1972.4,1971.5,1.039]
[1771476714774,0.47526704,1972.4,1971.6,0.49659124]
[1771476716068,1.74282268,1972.3,1971.7,1.26794137]
[1771476716780,1.26755564,1972.3,1971.7,1.76453261]
[1771476717079,1.26754436,1972.4,1971.7,1.76453261]
[1771476717298,7.30788658,1972.5,1971.8,0.49659124]
[1771476717584,1.74274001,1972.5,1971.8,0.49659124]
[1771476718150,1.74274001,1972.5,1971.8,1.26781946]
[1771476718151,0.47526704,1972.4,1971.8,1.26781946]
[1771476720257,1.74277571,1972.4,1971.7,5.07160564]
[1771476720758,0.46765657,1972.3,1971.7,5.07160564]
[1771476721482,4.8674312,1972.5,1971.8,0.49120731]
[1771476721774,3.6,1972.5,1972.0,0.49120731]
[1771476721957,4.86840341,1972.7,1972.0,0.49120731]
[1771476722161,0.0011,1972.5,1972.1,1.7588915]
[1771476724955,0.0011,1972.5,1972.1,1.26768419]
[1771476731284,0.46875657,1972.5,1972.1,1.26768419]
[1771476731488,0.0011,1972.5,1972.1,1.26768419]
[1771476734394,0.0011,1972.5,1972.1,1.7588915]
[1771476734972,0.0011,1972.5,1972.2,0.001]
[1771476735290,0.0011,1972.4,1972.2,0.001]
[1771476735476,0.0011,1972.4,1972.2,0.49220731]
[1771476736688,0.0011,1972.4,1972.2,1.75981192]
[1771476737085,0.0011,1972.4,1972.2,1.26860461]
[1771476738201,0.0011,1972.4,1972.2,0.001]
[1771476739172,0.0011,1972.4,1972.2,0.49220731]
[1771476739777,0.0011,1972.4,1972.2,0.001]
[1771476747616,0.0011,1972.4,1972.2,0.49220731]
[1771476748493,0.0011,1972.4,1972.3,1.26855564]
[1771476749994,0.0011,1972.4,1972.3,1.72105388]
[1771476750200,0.0011,1972.6,1972.3,1.72105388]
[1771476751007,0.0011,1972.6,1972.5,0.45249824]
[1771476751597,0.0011,1972.6,1972.4,1.047]
[1771476752640,0.48928223,1972.6,1972.3,0.001]
[1771476752790,0.48928223,1972.6,1972.2,0.001]
[1771476753185,0.48818223,1972.5,1972.2,0.001]
[1771476753390,1.26846808,1972.6,1972.0,1.049]
[1771476753391,0.48818223,1972.3,1972.0,1.049]
[1771476757709,0.48818223,1972.5,1972.0,1.049]
[1771476759216,0.48818223,1972.5,1972.0,2.31674191]
[1771476762023,0.48818223,1972.5,1972.1,0.001]
[1771476762224,0.0011,1972.4,1972.1,0.001]
[1771476768110,0.0011,1972.4,1972.1,0.45349824]
[1771476770129,0.0011,1972.4,1972.2,1.72011815]
[1771476773323,0.0011,1972.4,1972.2,1.26761991]
[1771476774745,0.0011,1972.4,1972.1,5.07148244]
[1771476775330,0.0011,1972.4,1972.3,0.001]
[1771476784941,0.0011,1972.5,1972.3,0.48326528]
[1771476786142,0.0011,1972.5,1972.4,1.74975666]
[1771476786348,0.0011,1972.5,1972.4,2.80475666]
[1771476787039,0.0011,1972.7,1972.4,2.80475666]
[1771476787338,4.05222106,1973.0,1972.5,0.48226528]
[1771476787339,3.6011,1973.0,1972.5,0.48226528]
[1771476787534,0.0011,1973.0,1972.5,0.48226528]
[1771476788538,0.0011,1973.0,1972.6,1.26736287]
[1771476788738,0.0011,1973.0,1972.6,1.74962815]
[1771476789329,0.0011,1972.7,1972.6,1.74962815]
[1771476789523,0.0011,1973.0,1972.7,0.48226528]
[1771476789736,0.0011,1973.0,1972.6,1.26736287]
[1771476793031,0.0011,1973.0,1972.6,1.74962815]
[1771476793234,0.0011,1973.0,1972.7,1.54126528]
[1771476794950,0.0011,1973.0,1972.8,1.26723438]
[1771476796962,0.0011,1973.0,1972.8,1.74949966]
[1771476800863,0.0011,1972.9,1972.8,1.74949966]
[1771476801368,0.0011,1973.2,1972.8,1.74949966]
[1771476803869,0.0011,1973.2,1972.8,1.26723438]
[1771476804670,0.0011,1973.2,1972.5,1.26742712]
[1771476804671,0.45222106,1973.2,1972.5,1.26742712]
[1771476804969,0.45112106,1973.0,1972.6,1.067]
[1771476805274,0.45112106,1972.9,1972.4,1.068]
[1771476805445,0.45112106,1972.9,1972.4,2.33549012]
[1771476805973,0.45112106,1972.8,1972.4,2.33549012]
[1771476807364,0.45112106,1972.8,1972.4,1.068]
[1771476810772,1.75204204,1973.0,1972.4,2.33547732]
[1771476810949,0.48490304,1972.9,1972.4,2.33547732]
[1771476812664,0.48490304,1972.9,1972.5,0.001]
[1771476812977,0.48600304,1972.9,1972.5,0.001]
[1771476814376,1.26827457,1972.9,1972.5,0.001]
[1771476814567,0.48490304,1972.7,1972.5,0.001]
[1771476814873,0.48490304,1972.6,1972.5,0.001]
[1771476815251,0.0011,1972.9,1972.5,0.001]
[1771476815484,0.48600304,1972.9,1972.5,0.001]
[1771476816570,1.75318185,1972.9,1972.5,0.001]
[1771476816766,0.48600304,1972.9,1972.5,0.001]
[1771476817482,0.48490304,1972.8,1972.5,0.001]
[1771476819166,0.48490304,1972.7,1972.5,0.001]
[1771476822268,0.48490304,1972.6,1972.5,0.001]
[1771476822468,0.48490304,1972.6,1972.3,0.001]
[1771476825283,0.48490304,1972.6,1972.4,0.001]
[1771476826716,1.75226645,1972.6,1972.4,0.001]
[1771476826905,0.48490304,1972.6,1972.4,0.001]
[1771476827106,1.7522252,1972.7,1972.4,0.001]
[1771476827706,0.48490304,1972.6,1972.4,0.001]
[1771476828006,1.7522252,1972.7,1972.4,0.001]
[1771476828179,0.48490304,1972.6,1972.4,0.001]
[1771476833206,0.48490304,1972.7,1972.2,0.001]
[1771476833404,1.75220166,1972.7,1972.2,0.001]
[1771476833906,0.999,1972.7,1972.2,0.46888375]
[1771476834277,0.0011,1972.8,1972.2,0.46888375]
[1771476835183,0.0011,1972.8,1972.3,1.26755564]
[1771476835392,0.0011,1972.8,1972.4,0.46788375]
[1771476837304,0.0011,1972.7,1972.5,1.26742712]
[1771476840207,0.0011,1972.7,1972.5,1.74746328]
[1771476840413,0.0011,1972.7,1972.6,0.48003616]
[1771476841512,0.0011,1972.7,1972.5,1.26742712]
[1771476841513,0.0011,1972.7,1972.5,1.74746328]
[1771476841909,0.0011,1972.9,1972.7,0.48003616]
[1771476842108,0.0011,1972.9,1972.5,1.26742712]
[1771476842419,0.0011,1972.9,1972.4,1.26749138]
[1771476842712,0.48198271,1972.9,1972.4,1.26749138]
[1771476844606,1.74915538,1972.9,1972.4,1.26749138]
[1771476844808,0.48198271,1972.9,1972.4,1.26749138]
[1771476845011,0.48088271,1972.8,1972.4,1.26749138]
[1771476846318,0.48088271,1972.8,1972.3,5.07108203]
[1771476848617,0.48088271,1972.8,1972.5,0.001]
[1771476848991,0.0011,1972.7,1972.5,0.001]
[1771476855233,0.48198271,1972.7,1972.5,0.001]
[1771476858334,0.0011,1972.7,1972.5,0.001]
[1771476865648,0.0011,1972.9,1972.5,0.001]
[1771476866216,0.0011,1972.9,1972.5,0.48103616]
[1771476866411,0.0011,1972.9,1972.5,0.001]
[1771476867517,0.0011,1972.9,1972.5,1.74846328]
[1771476868625,0.0011,1972.9,1972.6,0.48003616]
[1771476869224,0.0011,1972.9,1972.5,1.26842712]
[1771476870118,0.49349614,1972.9,1972.5,0.001]
[1771476870554,0.49239614,1972.7,1972.3,0.001]
[1771476871825,1.7597005,1972.7,1972.3,0.001]
[1771476873759,1.7597005,1972.7,1972.4,0.001]
[1771476873923,1.7608005,1972.7,1972.4,0.001]
[1771476877056,0.49239614,1972.6,1972.4,0.001]
[1771476882266,1.26840436,1972.7,1972.4,0.001]
[1771476882466,1.7608005,1972.7,1972.4,0.001]
[1771476882962,0.0011,1972.7,1972.4,0.001]
[1771476885961,0.0011,1972.7,1972.5,0.001]
[1771476886331,0.0011,1972.6,1972.5,0.001]
[1771476887553,3.42264165,1972.8,1972.6,0.45490375]
[1771476887748,3.42264165,1972.8,1972.5,0.45590375]
[1771476888356,0.0011,1972.8,1972.5,0.45590375]
[1771476888765,0.0011,1972.8,1972.6,1.72226662]
[1771476889379,0.0011,1972.8,1972.7,0.45490375]
[1771476890682,0.0011,1972.8,1972.7,1.72220237]
[1771476890841,0.0011,1973.0,1972.8,0.45490375]
[1771476891037,0.0022,1973.0,1972.8,0.45490375]
[1771476891265,0.0011,1973.0,1972.8,0.45490375]
[1771476891849,0.0011,1973.2,1972.9,0.45490375]
[1771476892962,0.0022,1973.2,1973.0,1.26710593]
[1771476894076,0.0022,1973.2,1972.9,0.45490375]
[1771476894295,0.0022,1973.2,1972.6,6.62748577]
[1771476894296,0.0022,1973.2,1972.7,1.26729862]
[1771476894580,0.0011,1973.1,1972.7,1.72220237]
[1771476895073,0.0011,1973.1,1972.8,0.45490375]
[1771476895467,0.0011,1973.2,1972.8,0.45490375]
[1771476895671,0.0011,1973.1,1972.8,0.45490375]
[1771476897082,0.0011,1973.1,1972.9,1.26717015]
[1771476897454,0.0011,1973.2,1972.9,1.26717015]
[1771476897455,0.0011,1973.0,1972.9,1.26717015]
[1771476897664,0.0011,1973.1,1972.9,1.26717015]
[1771476898558,0.0022,1973.1,1972.9,1.26717015]
[1771476900287,0.0011,1973.1,1972.9,1.75075827]
[1771476901168,0.0011,1973.1,1972.8,1.75177269]
[1771476901363,0.0011,1973.0,1972.8,0.001]
[1771476902088,0.0011,1972.9,1972.8,0.001]
[1771476902858,0.0011,1973.1,1972.8,0.48458812]
[1771476903085,0.0011,1973.0,1972.8,0.48458812]
[1771476904399,0.0011,1973.1,1972.9,1.75075827]
[1771476904696,0.0022,1973.1,1972.9,1.75075827]
[1771476905004,0.0022,1973.1,1972.9,1.26717015]
[1771476906585,0.0011,1973.1,1972.9,1.26717015]
[1771476908399,0.0011,1973.0,1972.8,2.34618428]
[1771476908895,0.49789179,1973.0,1972.7,0.001]
[1771476910375,0.49899179,1973.0,1972.7,0.001]
[1771476910570,0.0011,1973.0,1972.9,0.001]
[1771476912177,0.0011,1973.0,1972.5,5.07070474]
[1771476912178,0.49899179,1973.0,1972.5,0.001]
[1771476912869,1.26826965,1973.0,1972.5,0.001]
[1771476913067,0.49789179,1972.9,1972.5,0.001]
[1771476914972,0.49789179,1972.8,1972.5,0.001]
[1771476915369,0.49899179,1973.0,1972.5,0.001]
[1771476916870,0.49789179,1972.9,1972.5,0.001]
[1771476918479,0.49789179,1972.8,1972.5,0.001]
[1771476922783,0.49789179,1972.8,1972.6,0.001]
[1771476929616,3.42154165,1972.9,1972.6,0.001]
[1771476929793,3.42154165,1972.9,1972.6,0.49298016]
[1771476930497,3.42154165,1972.9,1972.6,0.001]
[1771476934915,0.0011,1972.8,1972.6,1.26836287]
[1771476938794,0.0011,1972.8,1972.6,0.001]
[1771476946722,0.0011,1972.8,1972.7,0.001]
[1771476948131,0.48110479,1972.7,1972.4,1.082]
[1771476949024,3.42264165,1972.8,1972.4,1.082]
[1771476952825,3.42264165,1972.8,1972.4,2.34944181]
[1771476953431,3.42264165,1972.8,1972.5,0.49198016]
[1771476955629,0.0011,1972.9,1972.6,1.26736287]
[1771476957934,0.0011,1972.9,1972.6,1.75934303]
[1771476958143,0.0011,1972.9,1972.7,0.49198016]
[1771476959021,0.0011,1972.8,1972.7,0.49198016]
[1771476959246,0.0011,1972.8,1972.6,1.26736287]
[1771476960026,0.0011,1972.8,1972.6,0.47760757]
[1771476960234,0.0011,1972.8,1972.7,1.091]
[1771476963640,0.0011,1972.8,1972.7,2.35829862]
[1771476967509,0.0011,1973.0,1972.7,2.83590619]
[1771476968052,0.0011,1973.0,1972.7,2.35829862]
[1771476968248,0.0011,1973.2,1972.8,0.47760757]
[1771476968414,0.0011,1973.2,1972.7,2.35829862]
[1771476968939,0.0011,1973.2,1972.7,2.83590619]
[1771476970344,0.0011,1973.2,1972.8,0.001]
[1771476970956,0.0011,1973.1,1972.8,0.001]
[1771476971414,0.0011,1973.1,1972.9,0.47760757]
[1771476971814,0.0011,1973.1,1972.8,6.03776944]
[1771476972114,0.0011,1973.2,1973.0,1.099]
[1771476973044,0.0011,1973.2,1973.1,1.26704171]
[1771476974244,0.47509073,1973.5,1973.2,0.47760757]
[1771476974245,0.0011,1973.5,1973.2,0.47760757]
[1771476974540,0.0011,1973.8,1973.2,0.47760757]
[1771476975114,0.0011,1973.8,1973.3,2.84452086]
[1771476977532,0.47509073,1973.8,1973.3,2.84452086]
[1771476978246,0.47509073,1973.8,1973.3,2.36691329]
[1771476978744,0.47509073,1973.7,1973.3,2.36691329]
[1771476979643,0.47399073,1973.4,1973.0,2.37010593]
[1771476981015,0.0011,1973.7,1973.0,2.37010593]
[1771476981238,0.47509073,1973.7,1973.0,2.8477135]
[1771476981435,0.47509073,1973.7,1973.1,0.47760757]
[1771476981636,0.0011,1973.7,1973.2,1.74458506]
[1771476982141,0.0011,1973.7,1973.2,1.26697749]
[1771476982351,0.47509073,1973.7,1973.1,1.26698927]
[1771476982547,0.47399073,1973.4,1972.9,6.17367626]
[1771476983127,0.0011,1973.3,1972.9,6.17367626]
[1771476983718,0.0011,1973.3,1972.9,2.37217015]
[1771476983920,0.47509073,1973.3,1972.9,2.37217015]
[1771476984254,0.47399073,1973.2,1972.9,1.105]
[1771476986366,0.47399073,1973.2,1972.9,2.37216529]
[1771476988550,0.0011,1973.3,1972.9,2.37216529]
[1771476988864,0.47399073,1973.2,1972.8,1.26820217]
[1771476990353,0.47399073,1973.2,1972.8,0.001]
[1771476990731,0.49173286,1973.1,1972.8,0.001]
[1771476991438,1.26803985,1973.3,1972.8,0.001]
[1771476991439,0.49283286,1973.3,1972.8,0.001]
[1771476991627,0.0011,1973.3,1972.8,0.48018133]
[1771476992555,0.0011,1973.3,1972.9,1.26717015]
[1771476993525,0.0011,1973.3,1972.8,1.74736278]
[1771476993728,0.49283286,1973.3,1972.8,1.26818145]
[1771476995045,0.49283286,1973.3,1972.9,0.001]
[1771476998456,0.49173286,1973.1,1972.9,0.001]
[1771476999968,1.7597756,1973.3,1972.9,0.001]
[1771477000269,0.0011,1973.3,1972.9,0.001]
[1771477000643,1.26801547,1973.3,1972.9,0.001]
[1771477001038,0.0011,1973.3,1972.9,0.001]
[1771477001733,1.26801425,1973.3,1972.9,0.001]
[1771477001933,0.0011,1973.3,1972.9,0.001]
[1771477002161,0.49283286,1973.3,1972.9,0.001]
[1771477006959,0.49283286,1973.3,1973.0,0.001]
[1771477011755,0.0011,1973.3,1973.0,0.001]
[1771477018499,0.0011,1973.3,1973.1,0.001]
[1771477018792,0.0011,1973.3,1973.0,0.001]
[1771477021296,0.0011,1973.3,1973.0,0.48481704]
[1771477023100,0.0011,1973.3,1973.1,1.75085875]
[1771477025706,5.55661285,1973.2,1972.8,0.001]
[1771477026007,6.01421481,1973.2,1972.8,0.001]
[1771477028280,7.28125115,1973.2,1972.8,0.001]